fUSD/lending_fUSD_20250523
["ID","MTS","AMOUNT","RATE_DAILY","PERIOD"]
[362139159,1748029832540,-19542.52085599,0.0002,2]
[362139160,1748029832551,-450.0,0.0002,2]
[362139161,1748029832562,-5742.71687691,0.0002,2]
[362139162,1748029832578,-287.81481837,0.00019429,2]
[362139163,1748029832589,-212.18518163,0.00019429,2]
[362139164,1748029832599,-2233.56520719,0.0002,2]
[362139165,1748029832610,-742.41129901,0.0002,2]
[362139166,1748029832634,-279.35154255,0.00019429,2]
[362139167,1748029832644,-486.30824869,0.00019429,2]
[362139168,1748029832654,-1079.44387135,0.0002,2]
[362139169,1748029832760,-302.0,0.0002,2]
[362139170,1748029832770,-1370.31381204,0.0002,2]
[362139174,1748029837469,-93789.8818764,0.0002,2]
[362139175,1748029837482,-4618.84302803,0.0002,2]
[362139176,1748029837493,-1222.56000018,0.0002,2]
[362139177,1748029837504,-1771.25319966,0.0002,2]
[362139178,1748029837545,-584.78514729,0.0002,2]
[362139179,1748029837556,-15016.6575918,0.0002,2]
[362139180,1748029837567,-1563.46598488,0.0002,2]
[362139181,1748029837579,-277.595,0.0002,2]
[362139182,1748029837699,-1054.56344788,0.0002,2]
[362139183,1748029837711,-350.38122542,0.0002,2]
[362139184,1748029837723,-463.28746673,0.0002,2]
[362139185,1748029837735,-9164.46848346,0.0002,2]
[362139186,1748029837746,-65262.05638807,0.0002,2]
[362139199,1748029839540,-113706.07978806,0.0002,2]
[362139200,1748029839552,-163726.0429165,0.0002,2]
[362139201,1748029839562,-92170.7758302,0.0002,2]
[362139202,1748029839572,-301.91369962,0.0002,2]
[362139203,1748029839581,-10000.0,0.0002,2]
[362139204,1748029839590,-1485.94198796,0.0002,2]
[362139205,1748029839600,-4314.2554656,0.0002,2]
[362139206,1748029839609,-1696.25,0.0002,2]
[362139207,1748029839619,-482.27999253,0.0002,2]
[362139208,1748029839628,-61763.41462921,0.0002,2]
[362139209,1748029839637,-3950.0,0.0002,2]
[362139210,1748029839647,-1254.75319466,0.0002,2]
[362139211,1748029839658,-11871.94832694,0.0002,2]
[362139212,1748029839667,-1012.4301788,0.0002,2]
[362139213,1748029839677,-2773.82407657,0.0002,2]
[362139214,1748029839686,-67843.43628444,0.0002,2]
[362139215,1748029839698,-21340.38557505,0.0002,2]
[362139216,1748029839707,-1000.0,0.0002,2]
[362139217,1748029839716,-497.13337,0.0002,2]
[362139218,1748029839726,-4000.0,0.0002,4]
[362139219,1748029839735,-151.0,0.0002,2]
[362139220,1748029839744,-9010.31432614,0.0002001,2]
[362139221,1748029839753,-4968.60267823,0.0002001,2]
[362139222,1748029839762,-5772.0,0.0002001,2]
[362139223,1748029839772,-1676.75087154,0.0002015,2]
[362139224,1748029839782,-1000.0,0.00020168,2]
[362139225,1748029839791,-521.3,0.00020168,2]
[362139226,1748029839801,-159.01,0.00020187,2]
[362139227,1748029839810,-200.0,0.00020316,2]
[362139228,1748029839819,-200.0,0.00020316,2]
[362139229,1748029839829,-500.0,0.00020421,2]
[362139230,1748029839838,-499.1895197,0.00020421,2]
[362139231,1748029839848,-1000.0,0.00020521,2]
[362139232,1748029839857,-6251.03463495,0.0002057,2]
[362139233,1748029839867,-272.0047,0.000206,2]
[362139234,1748029839876,-1680.0,0.00020623,2]
[362139235,1748029839885,-21965.01427699,0.000207,2]
[362139236,1748029839894,-218.25,0.00020986,2]
[362139237,1748029839905,-200.0,0.00021,2]
[362139238,1748029839915,-400.0,0.00021,2]
[362139239,1748029839924,-15201.84712113,0.00021,2]
[362139240,1748029839939,-4798.15287887,0.00021,2]
[362139241,1748029839948,-1156.65858239,0.00021,2]
[362139242,1748029839958,-190.90076082,0.00021,2]
[362139243,1748029839967,-703.27263711,0.00021002,2]
[362139244,1748029839978,-547.0,0.00021002,2]
[362139245,1748029839991,-390.61537257,0.00021002,2]
[362139246,1748029840001,-1500.0,0.00021068,2]
[362139247,1748029840012,-300.0,0.00021142,2]
[362139248,1748029840021,-246.57,0.00021369,2]
[362139249,1748029840032,-1748.83764338,0.0002137,2]
[362139250,1748029840043,-1352.25,0.0002137,2]
[362139251,1748029840061,-2752.56235662,0.0002137,2]
[362139252,1748029840070,-675.79235786,0.00021616,2]
[362139253,1748029840080,-1476.92,0.00021694,2]
[362139254,1748029840089,-1313.16127571,0.000217,2]
[362139255,1748029840104,-6013.55769738,0.000217,2]
[362139256,1748029840113,-6251.03463495,0.00021736,2]
[362139257,1748029840123,-1341.76868926,0.00021875,2]
[362139258,1748029840132,-514.76283085,0.00021918,2]
[362139259,1748029840141,-385.34186078,0.00021918,2]
[362139260,1748029840150,-214.99225772,0.00021957,2]
[362139261,1748029840159,-316.81,0.00021981,2]
[362139262,1748029840172,-248.17500739,0.00022,2]
[362139263,1748029840181,-500.0,0.00022,2]
[362139264,1748029840190,-232.57785995,0.0002211,2]
[362139265,1748029840199,-1640.88800968,0.00022114,2]
[362139266,1748029840208,-475.63977487,0.000222,6]
[362139267,1748029840218,-475.63977469,0.000222,6]
[362139268,1748029840227,-475.63977469,0.000222,6]
[362139269,1748029840236,-475.63977469,0.000222,6]
[362139270,1748029840245,-1260.33574723,0.00022219,3]
[362139271,1748029840255,-1260.33574723,0.00022219,3]
[362139272,1748029840265,-497.13338,0.000223,2]
[362139273,1748029840275,-34339.91538418,0.000225,2]
[362139274,1748029840285,-558.1200282,0.00022569,2]
[362139275,1748029840295,-2351.0,0.00022593,2]
[362139276,1748029840304,-1000.0,0.00022689,2]
[362139277,1748029840313,-506.36124028,0.0002271,2]
[362139278,1748029840323,-246.57,0.00022739,2]
[362139279,1748029840332,-1696.25,0.000228,7]
[362139280,1748029840341,-213.0,0.00022879,6]
[362139281,1748029840351,-6251.03463495,0.00022903,2]
[362139282,1748029840359,-475.63977469,0.00022934,8]
[362139283,1748029840368,-450.0,0.00023,2]
[362139284,1748029840377,-1506.15210796,0.00023,2]
[362139285,1748029840387,-333.55713455,0.00023,2]
[362139286,1748029840396,-200.0,0.000231,2]
[362139287,1748029840407,-2321.34003818,0.00023164,2]
[362139288,1748029840416,-50505.90601063,0.000232,2]
[362139289,1748029840425,-1640.88800968,0.00023227,2]
[362139290,1748029840434,-210.47,0.00023348,2]
[362139291,1748029840444,-165.98,0.00023396,2]
[362139292,1748029840453,-200.0,0.000235,2]
[362139293,1748029840463,-151.16,0.00023532,2]
[362139294,1748029840474,-15528.43713803,0.00023543,2]
[362139295,1748029840484,-1623.0,0.000236,2]
[362139296,1748029840493,-1231.62428568,0.0002365,2]
[362139297,1748029840502,-475.63977469,0.00023693,9]
[362139298,1748029840512,-507.02585871,0.00023784,2]
[362139299,1748029840521,-168.09,0.00023836,2]
[362139300,1748029840531,-165.6,0.00023877,2]
[362139301,1748029840540,-1476.92,0.00023958,2]
[362139302,1748029840550,-4578.35431033,0.00023963,2]
[362139303,1748029840559,-59800.73519459,0.00024,2]
[362139304,1748029840568,-987.6429375,0.00024,2]
[362139305,1748029840578,-21099.3289325,0.00024,2]
[362139306,1748029840590,-500.0,0.00024,2]
[362139307,1748029840604,-1729.85740307,0.00024,2]
[362139308,1748029840627,-3251.1049583,0.00024,2]
[362139309,1748029840643,-1287.15084131,0.00024,2]
[362139310,1748029840654,-10886.0,0.00024,2]
[362139311,1748029840665,-565.72286452,0.00024,2]
[362139316,1748029842707,-151.0,0.0002365,2]
[362139317,1748029842717,-426.13,0.00024,2]
[362139318,1748029842728,-15431.11589186,0.00024,2]
[362139319,1748029842743,-26337.9001066,0.00024,2]
[362139320,1748029842753,-6251.03463495,0.00024069,2]
[362139321,1748029842762,-246.57,0.00024109,2]
[362139322,1748029842771,-214.99225772,0.00024114,2]
[362139323,1748029842780,-218.25,0.00024134,2]
[362139324,1748029842791,-1415.697,0.00024181,6]
[362139325,1748029842801,-197.049,0.00024181,6]
[362139326,1748029842810,-408.18257005,0.0002421,2]
[362139327,1748029842819,-3577.56138769,0.0002421,2]
[362139328,1748029842829,-792.8018703,0.0002421,2]
[362139329,1748029842841,-302.0,0.0002421,2]
[362139330,1748029842940,-215.1981297,0.0002421,2]
[362139331,1748029842950,-936.0,0.0002421,2]
[362139332,1748029842959,-631.0,0.0002421,2]
[362139333,1748029842968,-799.0,0.0002421,2]
[362139334,1748029842978,-692.083,0.0002421,2]
[362139335,1748029842987,-1461.0,0.0002421,2]
[362139336,1748029842997,-921.0,0.0002421,2]
[362139337,1748029843007,-554.0,0.0002421,2]
[362139339,1748029843016,-1260.0,0.0002421,2]
[362139340,1748029843025,-4052.0,0.0002421,2]
[362139341,1748029843035,-154.0,0.0002421,2]
[362139342,1748029843044,-842.0,0.0002421,2]
[362139343,1748029843054,-6838.0,0.0002421,2]
[362139344,1748029843063,-881.0,0.0002421,2]
[362139345,1748029843072,-1696.25,0.000243,7]
[362139346,1748029843083,-234.187924,0.00024312,2]
[362139347,1748029843093,-1640.88800968,0.00024339,2]
[362139348,1748029843102,-475.63977469,0.00024452,11]
[362139350,1748029843111,-200.0,0.00024611,2]
[362139351,1748029843120,-300.0,0.00024658,2]
[362139352,1748029843129,-301.52,0.00024658,2]
[362139353,1748029843139,-1159.39,0.00024658,2]
[362139354,1748029843148,-162.87,0.00024658,2]
[362139355,1748029843157,-162.87,0.00024658,2]
[362139356,1748029843166,-353.5,0.00024658,2]
[362139357,1748029843176,-227.87527,0.00024748,7]
[362139358,1748029843188,-21403.61215896,0.0002475,2]
[362139359,1748029845472,-150.0,0.0002421,2]
[362139360,1748029845483,-154.6173273,0.00024658,2]
[362139361,1748029845493,-2053.54844279,0.0002475,2]
[362139362,1748029845826,-469.14798504,0.0002475,2]
[362139363,1748029958566,250.0,0.00015,2]
[362139364,1748029959671,300.0,0.00017,2]
[362139371,1748030211469,420.0,0.00042462,120]
[362139372,1748030211698,420.0,0.00042462,120]
[362139373,1748030212010,4619.19,0.00042462,120]
[362139374,1748030212115,420.0,0.00042462,120]
[362139375,1748030212250,4619.19,0.00042462,120]
[362139376,1748030212507,4619.19,0.00042462,120]
[362139377,1748030212761,4619.19,0.00042462,120]
[362139378,1748030213022,4619.19,0.00042462,120]
[362139379,1748030213205,420.0,0.00042462,120]
[362139380,1748030213275,4619.19,0.00042462,120]
[362139381,1748030213541,4619.19,0.00042462,120]
[362139382,1748030213800,4619.19,0.00042462,120]
[362139383,1748030213942,300.0,0.00042462,120]
[362139384,1748030214003,420.0,0.00042462,120]
[362139385,1748030214035,4619.19,0.00042462,120]
[362139386,1748030214134,420.0,0.00042462,120]
[362139387,1748030214282,4619.19,0.00042462,120]
[362139388,1748030214531,4619.19,0.00042462,120]
[362139389,1748030214773,4619.19,0.00042462,120]
[362139390,1748030215070,4619.19,0.00042462,120]
[362139391,1748030215171,173.64377871,0.00042462,120]
[362139392,1748030215266,4619.19,0.00042462,120]
[362139393,1748030215540,4619.19,0.00042462,120]
[362139394,1748030215804,4619.19,0.00042462,120]
[362139395,1748030216256,4619.19,0.00042462,120]
[362139396,1748030216505,4619.19,0.00042462,120]
[362139397,1748030216746,4619.19,0.00042462,120]
[362139398,1748030216999,4619.19,0.00042462,120]
[362139399,1748030217282,4619.19,0.00042462,120]
[362139400,1748030217517,4619.19,0.00042462,120]
[362139401,1748030217760,4619.19,0.00042462,120]
[362139402,1748030217795,420.0,0.00042462,120]
[362139403,1748030218007,4619.37667153,0.00042462,120]
[362139404,1748030218038,400.80993688,0.00042462,120]
[362139405,1748030218068,420.0,0.00042462,120]
[362139406,1748030220126,1163.03,0.00042462,120]
[362139407,1748030220290,420.0,0.00042462,120]
[362139408,1748030220384,1163.03,0.00042462,120]
[362139409,1748030220584,420.0,0.00042462,120]
[362139410,1748030220662,1163.03,0.00042462,120]
[362139411,1748030220896,1163.03,0.00042462,120]
[362139412,1748030221270,543.0,0.00042462,120]
[362139413,1748030221302,420.0,0.00042462,120]
[362139414,1748030221337,1163.03,0.00042462,120]
[362139415,1748030221379,420.0,0.00042462,120]
[362139416,1748030221413,1163.03,0.00042462,120]
[362139417,1748030221444,420.0,0.00042462,120]
[362139418,1748030221701,1163.03,0.00042462,120]
[362139419,1748030221744,420.0,0.00042462,120]
[362139420,1748030221903,420.0,0.00042462,120]
[362139421,1748030221942,1163.03,0.00042462,120]
[362139422,1748030222063,420.0,0.00042462,120]
[362139423,1748030222177,1163.03,0.00042462,120]
[362139424,1748030222320,420.0,0.00042462,120]
[362139425,1748030222458,1163.03,0.00042462,120]
[362139426,1748030222569,420.0,0.00042462,120]
[362139427,1748030222710,1163.03,0.00042462,120]
[362139428,1748030222814,420.0,0.00042462,120]
[362139429,1748030223035,1163.03,0.00042462,120]
[362139430,1748030223071,420.0,0.00042462,120]
[362139431,1748030223109,420.0,0.00042462,120]
[362139432,1748030223286,1163.03,0.00042462,120]
[362139433,1748030223327,173.96155098,0.00042462,120]
[362139434,1748030223537,1163.03,0.00042462,120]
[362139435,1748030223785,1163.03,0.00042462,120]
[362139436,1748030224031,1163.03,0.00042462,120]
[362139437,1748030224634,1163.03,0.00042462,120]
[362139438,1748030224669,422.53110369,0.00042462,120]
[362139439,1748030224876,1163.03,0.00042462,120]
[362139440,1748030225272,1163.03,0.00042462,120]
[362139441,1748030225438,1163.03,0.00042462,120]
[362139442,1748030225705,1163.03,0.00042462,120]
[362139443,1748030225949,1163.03,0.00042462,120]
[362139444,1748030226094,420.0,0.00042462,120]
[362139445,1748030226193,1163.03,0.00042462,120]
[362139446,1748030226509,1163.09918916,0.00042462,120]
[362139447,1748030226806,420.0,0.00042462,120]
[362139448,1748030227053,420.0,0.00042462,120]
[362139449,1748030227297,420.0,0.00042462,120]
[362139450,1748030227547,420.0,0.00042462,120]
[362139451,1748030227799,420.0,0.00042462,120]
[362139452,1748030228051,420.0,0.00042462,120]
[362139453,1748030228292,420.0,0.00042462,120]
[362139454,1748030228543,420.0,0.00042462,120]
[362139455,1748030228793,420.0,0.00042462,120]
[362139456,1748030229023,420.0,0.00042462,120]
[362139457,1748030229276,420.0,0.00042462,120]
[362139458,1748030229480,420.0,0.00042462,120]
[362139459,1748030229616,420.0,0.00042462,120]
[362139460,1748030229859,420.0,0.00042462,120]
[362139461,1748030230218,420.0,0.00042462,120]
[362139462,1748030230485,380.3753541,0.00042462,120]
[362139463,1748030231807,505.92,0.00042462,120]
[362139464,1748030238594,420.0,0.00042462,120]
[362139465,1748030238786,420.0,0.00042462,120]
[362139466,1748030239445,420.0,0.00042462,120]
[362139467,1748030239478,420.0,0.00042462,120]
[362139468,1748030241366,245.3,0.00042462,120]
[362139469,1748030241636,608.55,0.00042462,120]
[362139470,1748030241879,608.55,0.00042462,120]
[362139471,1748030242135,608.55,0.00042462,120]
[362139472,1748030242380,608.55,0.00042462,120]
[362139473,1748030242625,608.55,0.00042462,120]
[362139474,1748030242793,420.0,0.00042462,120]
[362139475,1748030242875,608.55,0.00042462,120]
[362139476,1748030243223,608.55,0.00042462,120]
[362139477,1748030243457,608.55,0.00042462,120]
[362139478,1748030244040,608.55,0.00042462,120]
[362139479,1748030244174,289.21475808,0.00042462,120]
[362139480,1748030244293,608.55,0.00042462,120]
[362139481,1748030244531,608.55,0.00042462,120]
[362139482,1748030244777,608.55,0.00042462,120]
[362139483,1748030245034,608.55,0.00042462,120]
[362139484,1748030245280,608.55,0.00042462,120]
[362139485,1748030245522,608.55,0.00042462,120]
[362139486,1748030245783,608.55,0.00042462,120]
[362139487,1748030246392,608.55,0.00042462,120]
[362139488,1748030246563,420.0,0.00042462,120]
[362139489,1748030246648,608.55,0.00042462,120]
[362139490,1748030246898,608.55,0.00042462,120]
[362139491,1748030247136,608.55,0.00042462,120]
[362139492,1748030247378,608.55,0.00042462,120]
[362139493,1748030247633,608.55,0.00042462,120]
[362139494,1748030247912,608.55,0.00042462,120]
[362139495,1748030248125,420.0,0.00042462,120]
[362139496,1748030248163,608.59576436,0.00042462,120]
[362139497,1748030248422,420.0,0.00042462,120]
[362139498,1748030250262,556.09,0.00042462,120]
[362139499,1748030250380,15087.54,0.00042462,120]
[362139500,1748030250633,15087.54,0.00042462,120]
[362139501,1748030250875,556.09,0.00042462,120]
[362139502,1748030250976,15087.54,0.00042462,120]
[362139503,1748030251115,556.09,0.00042462,120]
[362139504,1748030251230,15087.54,0.00042462,120]
[362139505,1748030251374,556.09,0.00042462,120]
[362139506,1748030251477,15087.54,0.00042462,120]
[362139507,1748030251616,556.09,0.00042462,120]
[362139508,1748030251819,500.0,0.00042462,120]
[362139509,1748030251862,15087.54,0.00042462,120]
[362139510,1748030251907,556.09,0.00042462,120]
[362139511,1748030252029,15087.54,0.00042462,120]
[362139512,1748030252108,556.09,0.00042462,120]
[362139513,1748030252237,420.0,0.00042462,120]
[362139514,1748030252302,15087.54,0.00042462,120]
[362139515,1748030252367,556.09,0.00042462,120]
[362139516,1748030252492,420.0,0.00042462,120]
[362139517,1748030252545,15087.54,0.00042462,120]
[362139518,1748030252609,556.09,0.00042462,120]
[362139519,1748030252833,15087.54,0.00042462,120]
[362139520,1748030252864,556.09,0.00042462,120]
[362139521,1748030253088,15087.54,0.00042462,120]
[362139522,1748030253159,556.09,0.00042462,120]
[362139523,1748030253420,556.09,0.00042462,120]
[362139524,1748030253664,556.09,0.00042462,120]
[362139525,1748030253704,15087.54,0.00042462,120]
[362139526,1748030253905,556.09,0.00042462,120]
[362139527,1748030253941,15087.54,0.00042462,120]
[362139528,1748030254220,556.09,0.00042462,120]
[362139529,1748030254252,15087.54,0.00042462,120]
[362139530,1748030254282,420.0,0.00042462,120]
[362139531,1748030254459,15087.54,0.00042462,120]
[362139532,1748030254506,556.09,0.00042462,120]
[362139533,1748030254713,15087.54,0.00042462,120]
[362139534,1748030254791,556.09,0.00042462,120]
[362139535,1748030254960,15087.54,0.00042462,120]
[362139536,1748030255032,556.09,0.00042462,120]
[362139537,1748030255243,15087.54,0.00042462,120]
[362139538,1748030255275,556.09,0.00042462,120]
[362139539,1748030255503,15087.54,0.00042462,120]
[362139540,1748030255533,556.09,0.00042462,120]
[362139541,1748030255579,420.0,0.00042462,120]
[362139542,1748030255770,556.09,0.00042462,120]
[362139543,1748030255808,15087.54,0.00042462,120]
[362139544,1748030256025,556.09,0.00042462,120]
[362139545,1748030256062,15087.54,0.00042462,120]
[362139546,1748030256265,556.09,0.00042462,120]
[362139547,1748030256536,15087.54,0.00042462,120]
[362139548,1748030256575,556.17609413,0.00042462,120]
[362139549,1748030256616,15087.54,0.00042462,120]
[362139550,1748030256880,15087.56557713,0.00042462,120]
[362139551,1748030256911,462.63,0.00042462,120]
[362139552,1748030258601,420.0,0.00042462,120]
[362139553,1748030261510,420.0,0.00042462,120]
[362139554,1748030262812,420.0,0.00042462,120]
[362139555,1748030264622,420.0,0.00042462,120]
[362139556,1748030267250,637.41,0.00042462,120]
[362139557,1748030271884,637.41,0.00042462,120]
[362139558,1748030272133,637.41,0.00042462,120]
[362139559,1748030272379,637.41,0.00042462,120]
[362139560,1748030272465,420.0,0.00042462,120]
[362139561,1748030272624,637.41,0.00042462,120]
[362139562,1748030272863,637.41,0.00042462,120]
[362139563,1748030273097,637.41,0.00042462,120]
[362139564,1748030273870,637.41,0.00042462,120]
[362139565,1748030273932,637.41,0.00042462,120]
[362139566,1748030274178,637.41,0.00042462,120]
[362139567,1748030274465,637.41,0.00042462,120]
[362139568,1748030274874,637.41,0.00042462,120]
[362139569,1748030275108,637.41,0.00042462,120]
[362139570,1748030275343,420.0,0.00042462,120]
[362139571,1748030275377,637.41,0.00042462,120]
[362139572,1748030275640,637.41,0.00042462,120]
[362139573,1748030276291,637.41,0.00042462,120]
[362139574,1748030276713,637.41,0.00042462,120]
[362139575,1748030277141,637.41,0.00042462,120]
[362139576,1748030277373,637.41,0.00042462,120]
[362139577,1748030277727,637.41,0.00042462,120]
[362139578,1748030277989,637.41,0.00042462,120]
[362139579,1748030278225,637.41,0.00042462,120]
[362139580,1748030278471,637.41,0.00042462,120]
[362139581,1748030278534,420.0,0.00042462,120]
[362139582,1748030278709,637.50890664,0.00042462,120]
[362139583,1748030278788,420.0,0.00042462,120]
[362139584,1748030279034,420.0,0.00042462,120]
[362139585,1748030279269,420.0,0.00042462,120]
[362139586,1748030279536,420.0,0.00042462,120]
[362139587,1748030279821,420.0,0.00042462,120]
[362139588,1748030280057,420.0,0.00042462,120]
[362139589,1748030280305,420.0,0.00042462,120]
[362139590,1748030280549,420.0,0.00042462,120]
[362139591,1748030281044,420.0,0.00042462,120]
[362139592,1748030281315,420.0,0.00042462,120]
[362139593,1748030281460,428.7514788,0.00042462,120]
[362139594,1748030281568,420.0,0.00042462,120]
[362139595,1748030281841,420.0,0.00042462,120]
[362139596,1748030282095,420.0,0.00042462,120]
[362139597,1748030282425,420.0,0.00042462,120]
[362139598,1748030282685,420.0,0.00042462,120]
[362139599,1748030282934,420.0,0.00042462,120]
[362139600,1748030283187,420.0,0.00042462,120]
[362139601,1748030283415,420.0,0.00042462,120]
[362139602,1748030283451,420.0,0.00042462,120]
[362139603,1748030284045,420.0,0.00042462,120]
[362139604,1748030284207,420.0,0.00042462,120]
[362139605,1748030284291,420.0,0.00042462,120]
[362139606,1748030284472,420.0,0.00042462,120]
[362139607,1748030284555,420.0,0.00042462,120]
[362139608,1748030284725,420.0,0.00042462,120]
[362139609,1748030284791,170.58008635,0.00042462,120]
[362139610,1748030284966,211.95,0.00026207,120]
[362139611,1748030284998,420.0,0.00042462,120]
[362139612,1748030285245,420.0,0.00042462,120]
[362139613,1748030285508,420.0,0.00042462,120]
[362139614,1748030285778,420.0,0.00042462,120]
[362139615,1748030286043,420.0,0.00042462,120]
[362139616,1748030286092,420.0,0.00042462,120]
[362139617,1748030286370,420.0,0.00042462,120]
[362139618,1748030286616,420.0,0.00042462,120]
[362139619,1748030286817,420.0,0.00042462,118]
[362139620,1748030286874,420.0,0.00042462,120]
[362139621,1748030286916,420.0,0.00042462,120]
[362139622,1748030287365,420.0,0.00042462,118]
[362139623,1748030287398,420.0,0.00042462,120]
[362139624,1748030287432,420.0,0.00042462,120]
[362139625,1748030287463,420.0,0.00042462,118]
[362139626,1748030287498,420.0,0.00042462,120]
[362139627,1748030287532,420.0,0.00042462,120]
[362139628,1748030287614,420.0,0.00042462,120]
[362139629,1748030287853,420.0,0.00042462,120]
[362139630,1748030287917,420.0,0.00042462,118]
[362139631,1748030288175,420.0,0.00042462,118]
[362139632,1748030288212,420.0,0.00042462,120]
[362139633,1748030288403,420.0,0.00042462,118]
[362139634,1748030288477,420.0,0.00042462,120]
[362139635,1748030288641,420.0,0.00042462,118]
[362139636,1748030288710,420.0,0.00042462,120]
[362139637,1748030288911,420.0,0.00042462,118]
[362139638,1748030288949,420.0,0.00042462,120]
[362139639,1748030289157,420.0,0.00042462,118]
[362139640,1748030289199,420.0,0.00042462,120]
[362139641,1748030289401,420.0,0.00042462,118]
[362139642,1748030289442,420.0,0.00042462,120]
[362139643,1748030289703,318.94839896,0.00042462,120]
[362139644,1748030289769,420.0,0.00042462,120]
[362139645,1748030289986,420.0,0.00042462,118]
[362139646,1748030290241,420.0,0.00042462,118]
[362139647,1748030290484,187.9,0.00042462,118]
[362139648,1748030291554,531.07,0.00042462,120]
[362139649,1748030291786,531.07,0.00042462,120]
[362139650,1748030292029,531.07,0.00042462,120]
[362139651,1748030292337,531.07,0.00042462,120]
[362139652,1748030292622,531.07,0.00042462,120]
[362139653,1748030292818,531.07,0.00042462,120]
[362139654,1748030292950,649.76,0.00042462,120]
[362139655,1748030292985,420.0,0.00042462,120]
[362139656,1748030293057,531.07,0.00042462,120]
[362139657,1748030293199,649.76,0.00042462,120]
[362139658,1748030293231,420.0,0.00042462,120]
[362139659,1748030293284,420.0,0.00042462,120]
[362139660,1748030293314,531.07,0.00042462,120]
[362139661,1748030293456,420.0,0.00042462,120]
[362139662,1748030293487,649.76,0.00042462,120]
[362139663,1748030293667,531.07,0.00042462,120]
[362139664,1748030293704,420.0,0.00042462,120]
[362139665,1748030293754,649.76,0.00042462,120]
[362139666,1748030293931,531.07,0.00042462,120]
[362139667,1748030293963,420.0,0.00042462,120]
[362139668,1748030294020,649.76,0.00042462,120]
[362139669,1748030294194,420.0,0.00042462,120]
[362139670,1748030294247,531.07,0.00042462,120]
[362139671,1748030294284,649.76,0.00042462,120]
[362139672,1748030294457,420.0,0.00042462,120]
[362139673,1748030294498,531.07,0.00042462,120]
[362139674,1748030294532,649.76,0.00042462,120]
[362139675,1748030294739,531.07,0.00042462,120]
[362139676,1748030294769,649.76,0.00042462,120]
[362139677,1748030294986,531.07,0.00042462,120]
[362139678,1748030295017,649.76,0.00042462,120]
[362139679,1748030295053,420.0,0.00042462,120]
[362139680,1748030295231,531.07,0.00042462,120]
[362139681,1748030295265,649.76,0.00042462,120]
[362139682,1748030295307,420.0,0.00042462,120]
[362139683,1748030295479,649.76,0.00042462,120]
[362139684,1748030295567,420.0,0.00042462,120]
[362139685,1748030295752,649.76,0.00042462,120]